[Event "Early-Titled-Tuesday-Blitz-October-10-2023"]
[Site "Chess.com"]
[Date "2023.10.10"]
[Round "8"]
[White "Henryk_S"]
[Black "Better_Chess_Faster"]
[Result "0-1"]
[WhiteElo "2132"]
[BlackElo "2074"]
[TimeControl "180+1"]
[EndTime "9:25:55 PDT"]
[Termination "Better_Chess_Faster won on time"]

1. e4 {[%clk 0:03:00.9]} 1... Nf6 {[%clk 0:02:59.1]} 2. Nc3 {[%clk 0:03:00]}
2... e5 {[%clk 0:02:58.1]} 3. Nf3 {[%clk 0:02:58.7]} 3... Nc6 {[%clk 0:02:57.1]}
4. Bb5 {[%clk 0:02:58]} 4... Nd4 {[%clk 0:02:56.5]} 5. Bc4 {[%clk 0:02:57.7]}
5... c6 {[%clk 0:02:55.8]} 6. d3 {[%clk 0:02:19.3]} 6... Bc5 {[%clk 0:02:47.8]}
7. h3 {[%clk 0:01:56.9]} 7... O-O {[%clk 0:02:46.7]} 8. Bg5 {[%clk 0:01:43.3]}
8... h6 {[%clk 0:02:43.6]} 9. Bh4 {[%clk 0:01:41.8]} 9... Re8 {[%clk 0:02:42.3]}
10. O-O {[%clk 0:01:33.9]} 10... b5 {[%clk 0:02:41]} 11. Bb3 {[%clk 0:01:29.4]}
11... a5 {[%clk 0:02:40.5]} 12. a4 {[%clk 0:00:49.5]} 12... Nxb3 {[%clk
0:02:34.7]} 13. cxb3 {[%clk 0:00:50.4]} 13... b4 {[%clk 0:02:32.3]} 14. Nb1
{[%clk 0:00:45.5]} 14... d5 {[%clk 0:02:28.9]} 15. Nbd2 {[%clk 0:00:44.8]} 15...
Ba6 {[%clk 0:02:23.9]} 16. Rc1 {[%clk 0:00:42.7]} 16... Bd4 {[%clk 0:02:08.4]}
17. Nxd4 {[%clk 0:00:39.7]} 17... exd4 {[%clk 0:02:06.8]} 18. Nf3 {[%clk
0:00:34.6]} 18... dxe4 {[%clk 0:02:02.1]} 19. dxe4 {[%clk 0:00:24.1]} 19... Rxe4
{[%clk 0:01:55.3]} 20. Re1 {[%clk 0:00:20.3]} 20... Rxe1+ {[%clk 0:01:51.3]} 21.
Qxe1 {[%clk 0:00:21.2]} 21... d3 {[%clk 0:01:49.3]} 22. Rxc6 {[%clk 0:00:19.4]}
22... Bb7 {[%clk 0:01:31.6]} 23. Rxf6 {[%clk 0:00:17.7]} 23... gxf6 {[%clk
0:01:31]} 24. Qd2 {[%clk 0:00:17]} 24... Bxf3 {[%clk 0:01:27.1]} 25. gxf3 {[%clk
0:00:12]} 25... Kg7 {[%clk 0:01:22.5]} 26. Qf4 {[%clk 0:00:07.3]} 26... d2
{[%clk 0:01:12.1]} 27. Qg4+ {[%clk 0:00:04.8]} 27... Kh8 {[%clk 0:01:08.2]} 0-1

[Event "Early-Titled-Tuesday-Blitz-October-10-2023"]
[Site "Chess.com"]
[Date "2023.10.10"]
[Round "8"]
[White "NowInChess"]
[Black "Flaccidmoves"]
[Result "0-1"]
[WhiteElo "2220"]
[BlackElo "2429"]
[TimeControl "180+1"]
[EndTime "9:25:56 PDT"]
[Termination "Flaccidmoves won on time"]

1. e4 {[%clk 0:03:00.9]} 1... e6 {[%clk 0:02:58.8]} 2. d3 {[%clk 0:02:56.4]}
2... d5 {[%clk 0:02:58.9]} 3. Nd2 {[%clk 0:02:56.8]} 3... c5 {[%clk 0:02:57.5]}
4. g3 {[%clk 0:02:56]} 4... Nc6 {[%clk 0:02:57.8]} 5. Bg2 {[%clk 0:02:56.5]}
5... Bd6 {[%clk 0:02:58.1]} 6. f4 {[%clk 0:02:55.4]} 6... Nge7 {[%clk
0:02:44.9]} 7. Ngf3 {[%clk 0:02:50.6]} 7... f6 {[%clk 0:02:40.1]} 8. O-O {[%clk
0:02:49.7]} 8... O-O {[%clk 0:02:39.4]} 9. c3 {[%clk 0:02:49.3]} 9... b6 {[%clk
0:02:24.5]} 10. Qe2 {[%clk 0:02:40.6]} 10... Ba6 {[%clk 0:02:12]} 11. Kh1 {[%clk
0:02:09.8]} 11... dxe4 {[%clk 0:01:48.3]} 12. Nxe4 {[%clk 0:02:05.5]} 12... Bc7
{[%clk 0:01:47.3]} 13. Rd1 {[%clk 0:01:49.5]} 13... Qd7 {[%clk 0:01:46.5]} 14.
Be3 {[%clk 0:01:41.8]} 14... Rad8 {[%clk 0:01:45.3]} 15. Nf2 {[%clk 0:01:39.8]}
15... Nf5 {[%clk 0:01:40.8]} 16. Rd2 {[%clk 0:01:34.2]} 16... Rfe8 {[%clk
0:01:38.6]} 17. Rad1 {[%clk 0:01:26.3]} 17... e5 {[%clk 0:01:37.9]} 18. fxe5
{[%clk 0:01:09.4]} 18... Nxe5 {[%clk 0:01:36.9]} 19. Nxe5 {[%clk 0:01:07.4]}
19... Rxe5 {[%clk 0:01:35.8]} 20. Ne4 {[%clk 0:00:59.5]} 20... Nxe3 {[%clk
0:01:35]} 21. Qxe3 {[%clk 0:00:49.6]} 21... f5 {[%clk 0:01:35]} 22. Bh3 {[%clk
0:00:12.8]} 22... Qe7 {[%clk 0:01:23]} 23. Qf4 {[%clk 0:00:03.2]} 23... fxe4
{[%clk 0:01:15.4]} 24. dxe4 {[%clk 0:00:02.7]} 24... Rf8 {[%clk 0:01:07.1]} 25.
Qe3 {[%clk 0:00:01.9]} 25... Rxe4 {[%clk 0:01:05.6]} 26. Qg1 {[%clk 0:00:01.3]}
26... Bb7 {[%clk 0:01:04.7]} 0-1

[Event "Early-Titled-Tuesday-Blitz-October-10-2023"]
[Site "Chess.com"]
[Date "2023.10.10"]
[Round "8"]
[White "Dedic8"]
[Black "Oleksandr_Bortnyk"]
[Result "0-1"]
[WhiteElo "2851"]
[BlackElo "3049"]
[TimeControl "180+1"]
[EndTime "9:25:58 PDT"]
[Termination "Oleksandr_Bortnyk won by resignation"]

1. d4 {[%clk 0:03:00.9]} 1... d6 {[%clk 0:02:54.4]} 2. c4 {[%clk 0:02:59.7]}
2... e5 {[%clk 0:02:54.5]} 3. Nf3 {[%clk 0:02:58.5]} 3... e4 {[%clk 0:02:54.9]}
4. Nfd2 {[%clk 0:02:58.2]} 4... f5 {[%clk 0:02:55.8]} 5. Nc3 {[%clk 0:02:54.7]}
5... g6 {[%clk 0:02:56.1]} 6. e3 {[%clk 0:02:52.7]} 6... Bh6 {[%clk 0:02:55.7]}
7. h4 {[%clk 0:02:48.8]} 7... Nf6 {[%clk 0:02:55]} 8. h5 {[%clk 0:02:48.5]} 8...
g5 {[%clk 0:02:55.1]} 9. b4 {[%clk 0:02:42.3]} 9... O-O {[%clk 0:02:54.1]} 10.
Bb2 {[%clk 0:02:42.1]} 10... a5 {[%clk 0:02:52.5]} 11. bxa5 {[%clk 0:02:41.8]}
11... Nc6 {[%clk 0:02:47.7]} 12. Nb3 {[%clk 0:02:35.6]} 12... f4 {[%clk
0:02:47]} 13. d5 {[%clk 0:02:08.5]} 13... fxe3 {[%clk 0:02:36.5]} 14. dxc6
{[%clk 0:01:56.5]} 14... exf2+ {[%clk 0:02:37]} 15. Kxf2 {[%clk 0:01:56.7]}
15... bxc6 {[%clk 0:02:28.5]} 16. Kg1 {[%clk 0:01:50]} 16... Qe7 {[%clk
0:02:20.6]} 17. Qd4 {[%clk 0:01:44.4]} 17... g4 {[%clk 0:02:12.7]} 18. Re1
{[%clk 0:01:35.8]} 18... c5 {[%clk 0:02:05.5]} 19. Nd5 {[%clk 0:01:00.2]} 19...
cxd4 {[%clk 0:01:53]} 20. Nxe7+ {[%clk 0:01:00.5]} 20... Kf7 {[%clk 0:01:53.6]}
21. Nxc8 {[%clk 0:01:01]} 21... Be3+ {[%clk 0:01:43.6]} 22. Rxe3 {[%clk
0:00:48.9]} 22... dxe3 {[%clk 0:01:44.5]} 23. Be2 {[%clk 0:00:37.1]} 23... Raxc8
{[%clk 0:01:40.5]} 24. Kh2 {[%clk 0:00:36.1]} 24... Rb8 {[%clk 0:01:34.3]} 25.
Kg3 {[%clk 0:00:31.9]} 25... c5 {[%clk 0:01:31.2]} 26. Rf1 {[%clk 0:00:27.9]}
26... Ke7 {[%clk 0:01:29.8]} 27. Rf5 {[%clk 0:00:20.6]} 27... Rb4 {[%clk
0:01:28.8]} 28. Kh4 {[%clk 0:00:07.1]} 28... h6 {[%clk 0:01:26.2]} 29. Bxf6+
{[%clk 0:00:03.9]} 29... Rxf6 {[%clk 0:01:27.1]} 30. Rxf6 {[%clk 0:00:03.8]}
30... Kxf6 {[%clk 0:01:28]} 31. Kxg4 {[%clk 0:00:04.2]} 31... Ra4 {[%clk
0:01:27.8]} 32. Kf4 {[%clk 0:00:04.6]} 32... Rxa2 {[%clk 0:01:28.3]} 33. Kxe3
{[%clk 0:00:05.2]} 33... Ke5 {[%clk 0:01:27.3]} 34. g4 {[%clk 0:00:04.4]} 34...
Ra3 {[%clk 0:01:27.9]} 35. Bd1 {[%clk 0:00:05.2]} 35... d5 {[%clk 0:01:28.7]}
36. cxd5 {[%clk 0:00:05.3]} 36... c4 {[%clk 0:01:29.6]} 37. Kd2 {[%clk
0:00:03.8]} 37... cxb3 {[%clk 0:01:29.1]} 38. Kc3 {[%clk 0:00:04.2]} 0-1

[Event "Early-Titled-Tuesday-Blitz-October-10-2023"]
[Site "Chess.com"]
[Date "2023.10.10"]
[Round "8"]
[White "Witaliss"]
[Black "LUISMIGUELOV"]
[Result "0-1"]
[WhiteElo "2305"]
[BlackElo "2148"]
[TimeControl "180+1"]
[EndTime "9:26:03 PDT"]
[Termination "LUISMIGUELOV won by resignation"]

1. Nf3 {[%clk 0:03:00.9]} 1... d5 {[%clk 0:02:58.6]} 2. g3 {[%clk 0:03:00.2]}
2... Bg4 {[%clk 0:02:57.7]} 3. Bg2 {[%clk 0:03:00.3]} 3... c6 {[%clk 0:02:57.8]}
4. O-O {[%clk 0:03:00.1]} 4... h5 {[%clk 0:02:58.1]} 5. h3 {[%clk 0:02:56.2]}
5... Bxf3 {[%clk 0:02:56.7]} 6. Bxf3 {[%clk 0:02:54.1]} 6... h4 {[%clk
0:02:54.7]} 7. g4 {[%clk 0:02:53.8]} 7... e5 {[%clk 0:02:53]} 8. d3 {[%clk
0:02:50.6]} 8... Nd7 {[%clk 0:02:51.8]} 9. c4 {[%clk 0:02:49.5]} 9... d4 {[%clk
0:02:49.7]} 10. e3 {[%clk 0:02:48.8]} 10... dxe3 {[%clk 0:02:47.4]} 11. fxe3
{[%clk 0:02:47.4]} 11... Bc5 {[%clk 0:02:46.8]} 12. d4 {[%clk 0:02:43.1]} 12...
Bb6 {[%clk 0:02:37.5]} 13. Nc3 {[%clk 0:02:38.6]} 13... Qe7 {[%clk 0:02:33.3]}
14. c5 {[%clk 0:02:33.5]} 14... Bc7 {[%clk 0:02:32.1]} 15. b4 {[%clk 0:02:27.1]}
15... f5 {[%clk 0:02:19.3]} 16. d5 {[%clk 0:02:24.7]} 16... e4 {[%clk
0:02:10.6]} 17. d6 {[%clk 0:02:08.6]} 17... Qe5 {[%clk 0:02:09.6]} 18. dxc7
{[%clk 0:02:02.9]} 18... exf3 {[%clk 0:02:06.9]} 19. Qd6 {[%clk 0:02:01.5]}
19... Qxc3 {[%clk 0:01:54]} 20. Qe6+ {[%clk 0:01:59.1]} 20... Ne7 {[%clk
0:01:52.4]} 21. e4 {[%clk 0:01:58.9]} 21... Qd4+ {[%clk 0:01:45.7]} 22. Kh1
{[%clk 0:01:51.8]} 22... Qxe4 {[%clk 0:01:45.2]} 23. gxf5 {[%clk 0:01:48.2]}
23... Qxf5 {[%clk 0:01:39.7]} 24. Qxf5 {[%clk 0:01:43.9]} 24... Nxf5 {[%clk
0:01:39.6]} 25. Rxf3 {[%clk 0:01:44]} 25... Ng3+ {[%clk 0:01:37]} 26. Kg2 {[%clk
0:01:43.9]} 26... Rc8 {[%clk 0:01:32.9]} 27. Bf4 {[%clk 0:01:43.2]} 27... O-O
{[%clk 0:01:22.5]} 28. Rd1 {[%clk 0:01:39.5]} 28... Rxf4 {[%clk 0:01:21.1]} 29.
Rxf4 {[%clk 0:01:38.8]} 29... Rxc7 {[%clk 0:01:20.7]} 30. Rxh4 {[%clk
0:01:38.8]} 30... Nf5 {[%clk 0:01:19]} 31. Re4 {[%clk 0:01:38.3]} 31... Nf6
{[%clk 0:01:17.4]} 32. Ree1 {[%clk 0:01:31]} 32... Nd5 {[%clk 0:01:16]} 33. Rb1
{[%clk 0:01:24.6]} 33... a6 {[%clk 0:01:04.4]} 34. a3 {[%clk 0:01:22.8]} 34...
Rf7 {[%clk 0:00:55.6]} 35. Rb3 {[%clk 0:01:20.6]} 35... Kh7 {[%clk 0:00:54.3]}
36. Kh2 {[%clk 0:01:11.4]} 36... Nh4 {[%clk 0:00:52.1]} 37. Re2 {[%clk
0:01:09.6]} 37... Nf3+ {[%clk 0:00:49.6]} 38. Kg3 {[%clk 0:01:05.2]} 38... Nd4
{[%clk 0:00:49.8]} 39. Rbb2 {[%clk 0:01:04.8]} 39... Nxe2+ {[%clk 0:00:49.3]}
40. Rxe2 {[%clk 0:01:04.8]} 40... Re7 {[%clk 0:00:48.7]} 41. Rf2 {[%clk
0:01:03.4]} 41... Re3+ {[%clk 0:00:48.3]} 42. Kg4 {[%clk 0:01:02.4]} 42... Rxa3
{[%clk 0:00:47.8]} 43. Rf7 {[%clk 0:01:01.7]} 43... Rb3 {[%clk 0:00:45.2]} 44.
Rxb7 {[%clk 0:01:01.3]} 44... Rxb4+ {[%clk 0:00:45.3]} 0-1

[Event "Early-Titled-Tuesday-Blitz-October-10-2023"]
[Site "Chess.com"]
[Date "2023.10.10"]
[Round "8"]
[White "wqws"]
[Black "Efremov_Vlad"]
[Result "1-0"]
[WhiteElo "2671"]
[BlackElo "2367"]
[TimeControl "180+1"]
[EndTime "9:26:11 PDT"]
[Termination "wqws won by resignation"]

1. e4 {[%clk 0:03:00.9]} 1... c5 {[%clk 0:03:00.2]} 2. Nf3 {[%clk 0:03:00.6]}
2... d6 {[%clk 0:03:00.7]} 3. d4 {[%clk 0:02:59.9]} 3... cxd4 {[%clk 0:03:01.6]}
4. Nxd4 {[%clk 0:03:00.8]} 4... Nf6 {[%clk 0:03:02.3]} 5. Nc3 {[%clk 0:03:01.4]}
5... a6 {[%clk 0:03:02.9]} 6. Bg5 {[%clk 0:03:01.5]} 6... e6 {[%clk 0:03:02.2]}
7. f4 {[%clk 0:03:02]} 7... h6 {[%clk 0:03:02.4]} 8. Bh4 {[%clk 0:03:02.1]} 8...
Qb6 {[%clk 0:03:03.1]} 9. a3 {[%clk 0:03:02.2]} 9... Nbd7 {[%clk 0:03:00.4]} 10.
Bf2 {[%clk 0:03:01]} 10... Qc7 {[%clk 0:03:00.5]} 11. Qf3 {[%clk 0:03:00.4]}
11... b5 {[%clk 0:03:00.1]} 12. O-O-O {[%clk 0:03:01]} 12... Rb8 {[%clk
0:02:59.5]} 13. Bd3 {[%clk 0:02:56.9]} 13... b4 {[%clk 0:02:34.6]} 14. axb4
{[%clk 0:02:54.8]} 14... Rxb4 {[%clk 0:02:35.5]} 15. Rhe1 {[%clk 0:02:50.4]}
15... Bb7 {[%clk 0:02:34.6]} 16. Nd5 {[%clk 0:02:31]} 16... exd5 {[%clk
0:02:05.9]} 17. exd5+ {[%clk 0:02:29.1]} 17... Kd8 {[%clk 0:02:06.5]} 18. Nc6+
{[%clk 0:02:28.2]} 18... Bxc6 {[%clk 0:02:06.7]} 19. dxc6 {[%clk 0:02:29]} 19...
Nb6 {[%clk 0:02:02.3]} 20. c3 {[%clk 0:01:49.9]} 20... Ra4 {[%clk 0:01:59.2]}
21. g4 {[%clk 0:01:03]} 21... Be7 {[%clk 0:01:38.7]} 22. Rxe7 {[%clk 0:00:49.4]}
22... Kxe7 {[%clk 0:01:33.6]} 23. Qe3+ {[%clk 0:00:49.6]} 23... Kd8 {[%clk
0:00:53.4]} 24. Qxb6 {[%clk 0:00:49.4]} 24... Qxb6 {[%clk 0:00:54]} 25. Bxb6+
{[%clk 0:00:49]} 25... Kc8 {[%clk 0:00:53]} 26. Bf5+ {[%clk 0:00:46.8]} 26...
Kb8 {[%clk 0:00:53.4]} 27. Rxd6 {[%clk 0:00:44.8]} 1-0

[Event "Early-Titled-Tuesday-Blitz-October-10-2023"]
[Site "Chess.com"]
[Date "2023.10.10"]
[Round "8"]
[White "VincentKeymer"]
[Black "BlueWizzard"]
[Result "1-0"]
[WhiteElo "3096"]
[BlackElo "2918"]
[TimeControl "180+1"]
[EndTime "9:26:12 PDT"]
[Termination "VincentKeymer won on time"]

1. Nf3 {[%clk 0:03:00.9]} 1... g6 {[%clk 0:03:00]} 2. c4 {[%clk 0:03:01.5]} 2...
c5 {[%clk 0:02:58.7]} 3. Nc3 {[%clk 0:03:02.1]} 3... Bg7 {[%clk 0:02:57.2]} 4.
g3 {[%clk 0:03:02.8]} 4... Nh6 {[%clk 0:02:54.6]} 5. d4 {[%clk 0:03:01.2]} 5...
cxd4 {[%clk 0:02:54.5]} 6. Nxd4 {[%clk 0:03:02.1]} 6... Nc6 {[%clk 0:02:53.5]}
7. Nc2 {[%clk 0:03:01.2]} 7... Nf5 {[%clk 0:02:51.7]} 8. Bg2 {[%clk 0:03:01.3]}
8... b6 {[%clk 0:02:46]} 9. O-O {[%clk 0:02:56.1]} 9... Bb7 {[%clk 0:02:46.1]}
10. e4 {[%clk 0:02:51.8]} 10... Nfd4 {[%clk 0:02:41.2]} 11. Ne3 {[%clk
0:02:52.5]} 11... O-O {[%clk 0:02:38.5]} 12. Qd2 {[%clk 0:02:50.3]} 12... Rc8
{[%clk 0:02:25.1]} 13. b3 {[%clk 0:02:50]} 13... Ne5 {[%clk 0:02:25.4]} 14. f4
{[%clk 0:02:48.7]} 14... Nec6 {[%clk 0:02:20.5]} 15. Bb2 {[%clk 0:02:49.3]}
15... d6 {[%clk 0:02:10.9]} 16. Rad1 {[%clk 0:02:47.3]} 16... e5 {[%clk
0:02:10.8]} 17. f5 {[%clk 0:02:41.3]} 17... Bh6 {[%clk 0:02:10.8]} 18. Qf2
{[%clk 0:02:40.9]} 18... f6 {[%clk 0:01:55.3]} 19. Ncd5 {[%clk 0:02:40.4]} 19...
Bg7 {[%clk 0:01:52.5]} 20. h4 {[%clk 0:02:40.3]} 20... a6 {[%clk 0:01:46.3]} 21.
Bh3 {[%clk 0:02:40.3]} 21... Rb8 {[%clk 0:01:44.5]} 22. fxg6 {[%clk 0:02:37.5]}
22... hxg6 {[%clk 0:01:44.3]} 23. h5 {[%clk 0:02:38.2]} 23... f5 {[%clk
0:01:43.9]} 24. hxg6 {[%clk 0:02:38.1]} 24... fxe4 {[%clk 0:01:39.6]} 25. Qg2
{[%clk 0:01:52.7]} 25... Rf3 {[%clk 0:01:25.1]} 26. Bg4 {[%clk 0:01:36.2]} 26...
Rxf1+ {[%clk 0:01:07.1]} 27. Rxf1 {[%clk 0:01:34.9]} 27... Qg5 {[%clk
0:01:07.3]} 28. Qxe4 {[%clk 0:01:31.5]} 28... Bc8 {[%clk 0:00:59]} 29. Bxd4
{[%clk 0:01:18.2]} 29... Bxg4 {[%clk 0:00:48]} 30. Nxg4 {[%clk 0:01:13.2]} 30...
Nxd4 {[%clk 0:00:45.6]} 31. Rf7 {[%clk 0:01:08.1]} 31... Qc1+ {[%clk 0:00:38.2]}
32. Kg2 {[%clk 0:01:05]} 32... Qd2+ {[%clk 0:00:30.3]} 33. Kh3 {[%clk
0:01:02.5]} 1-0

[Event "Early-Titled-Tuesday-Blitz-October-10-2023"]
[Site "Chess.com"]
[Date "2023.10.10"]
[Round "8"]
[White "Willi_Skibbe"]
[Black "FischerKasparow"]
[Result "1-0"]
[WhiteElo "2210"]
[BlackElo "2125"]
[TimeControl "180+1"]
[EndTime "9:26:14 PDT"]
[Termination "Willi_Skibbe won by resignation"]

1. e4 {[%clk 0:03:00.9]} 1... c5 {[%clk 0:02:53.3]} 2. Nf3 {[%clk 0:02:58.6]}
2... d6 {[%clk 0:02:53.4]} 3. Bc4 {[%clk 0:02:58.3]} 3... Nf6 {[%clk 0:02:52.7]}
4. d3 {[%clk 0:02:58.3]} 4... e6 {[%clk 0:02:52.3]} 5. c3 {[%clk 0:02:57.9]}
5... Be7 {[%clk 0:02:52.8]} 6. O-O {[%clk 0:02:57.5]} 6... a6 {[%clk 0:02:52]}
7. Bb3 {[%clk 0:02:57.9]} 7... b5 {[%clk 0:02:50.4]} 8. Nbd2 {[%clk 0:02:57]}
8... Bb7 {[%clk 0:02:49.9]} 9. Re1 {[%clk 0:02:56.7]} 9... O-O {[%clk
0:02:49.3]} 10. d4 {[%clk 0:02:56.2]} 10... cxd4 {[%clk 0:02:48.3]} 11. cxd4
{[%clk 0:02:55.9]} 11... Nbd7 {[%clk 0:02:47.5]} 12. Bc2 {[%clk 0:02:54.4]}
12... Rc8 {[%clk 0:02:40.4]} 13. Nf1 {[%clk 0:02:49.6]} 13... d5 {[%clk
0:02:36.7]} 14. e5 {[%clk 0:02:49]} 14... Ne4 {[%clk 0:02:36.9]} 15. Ng3 {[%clk
0:02:44.7]} 15... Nxg3 {[%clk 0:02:35.2]} 16. hxg3 {[%clk 0:02:41.2]} 16... b4
{[%clk 0:02:27.8]} 17. Qd3 {[%clk 0:02:31.9]} 17... g6 {[%clk 0:02:27.7]} 18.
Bh6 {[%clk 0:02:31.2]} 18... Re8 {[%clk 0:02:27.2]} 19. Rec1 {[%clk 0:02:28]}
19... a5 {[%clk 0:02:21.9]} 20. Ba4 {[%clk 0:02:27.6]} 20... Bf8 {[%clk
0:01:46.3]} 21. Be3 {[%clk 0:01:56.7]} 21... Bg7 {[%clk 0:01:38]} 22. Qb5 {[%clk
0:01:53.9]} 22... Rxc1+ {[%clk 0:01:17.1]} 23. Rxc1 {[%clk 0:01:54.8]} 23... Bc8
{[%clk 0:01:14]} 24. Rxc8 {[%clk 0:01:42.7]} 24... Qxc8 {[%clk 0:01:14.9]} 25.
Qxd7 {[%clk 0:01:42.5]} 25... Qxd7 {[%clk 0:01:08.5]} 26. Bxd7 {[%clk
0:01:43.4]} 26... Rd8 {[%clk 0:01:08.1]} 27. Ba4 {[%clk 0:01:43.2]} 27... Bf8
{[%clk 0:01:01.5]} 28. g4 {[%clk 0:01:39.2]} 28... h6 {[%clk 0:00:57.5]} 29. Kf1
{[%clk 0:01:36.8]} 29... Kg7 {[%clk 0:00:55.8]} 30. Ke2 {[%clk 0:01:36.6]} 30...
Be7 {[%clk 0:00:54.9]} 31. Kd3 {[%clk 0:01:35.6]} 31... f6 {[%clk 0:00:53.9]}
32. exf6+ {[%clk 0:01:31.7]} 32... Bxf6 {[%clk 0:00:54.8]} 33. Bf4 {[%clk
0:01:31.8]} 33... Rc8 {[%clk 0:00:52.7]} 34. Kd2 {[%clk 0:01:26.9]} 34... g5
{[%clk 0:00:48.9]} 35. Be5 {[%clk 0:01:26.2]} 35... Bxe5 {[%clk 0:00:47.6]} 36.
Nxe5 {[%clk 0:01:27.1]} 36... Kf6 {[%clk 0:00:42]} 37. f3 {[%clk 0:01:24.6]}
37... Rh8 {[%clk 0:00:36.1]} 38. Bc2 {[%clk 0:01:07.9]} 38... h5 {[%clk
0:00:32.7]} 39. gxh5 {[%clk 0:01:05.3]} 39... Rxh5 {[%clk 0:00:32.2]} 40. Bd3
{[%clk 0:00:59.4]} 40... Rh2 {[%clk 0:00:28.8]} 41. Ng4+ {[%clk 0:00:58.9]} 1-0

[Event "Early-Titled-Tuesday-Blitz-October-10-2023"]
[Site "Chess.com"]
[Date "2023.10.10"]
[Round "8"]
[White "TigrVShlyape"]
[Black "Doomfist26"]
[Result "1-0"]
[WhiteElo "2938"]
[BlackElo "2637"]
[TimeControl "180+1"]
[EndTime "9:26:20 PDT"]
[Termination "TigrVShlyape won by checkmate"]

1. e4 {[%clk 0:03:00.9]} 1... e6 {[%clk 0:02:59.2]} 2. d4 {[%clk 0:02:58.6]}
2... d5 {[%clk 0:02:59.5]} 3. Nc3 {[%clk 0:02:59.3]} 3... Nf6 {[%clk 0:02:59.8]}
4. e5 {[%clk 0:02:59.7]} 4... Nfd7 {[%clk 0:03:00.2]} 5. f4 {[%clk 0:03:00.4]}
5... c5 {[%clk 0:03:00.9]} 6. Nf3 {[%clk 0:03:01]} 6... Nc6 {[%clk 0:03:01.6]}
7. Ne2 {[%clk 0:03:01.1]} 7... Be7 {[%clk 0:03:02.3]} 8. c3 {[%clk 0:03:00.7]}
8... f6 {[%clk 0:03:02.4]} 9. g3 {[%clk 0:02:56.6]} 9... cxd4 {[%clk 0:02:54.8]}
10. cxd4 {[%clk 0:02:52.4]} 10... fxe5 {[%clk 0:02:54.8]} 11. dxe5 {[%clk
0:02:16.7]} 11... O-O {[%clk 0:02:52]} 12. Be3 {[%clk 0:02:15.7]} 12... Qa5+
{[%clk 0:02:43.8]} 13. Qd2 {[%clk 0:02:02.2]} 13... Bb4 {[%clk 0:02:39.4]} 14.
Nc3 {[%clk 0:02:02.7]} 14... Nc5 {[%clk 0:02:22.9]} 15. Bd3 {[%clk 0:01:51.6]}
15... d4 {[%clk 0:01:49]} 16. Nxd4 {[%clk 0:01:49.6]} 16... Nxd4 {[%clk
0:01:43.5]} 17. Bxd4 {[%clk 0:01:48]} 17... Nxd3+ {[%clk 0:01:41.8]} 18. Qxd3
{[%clk 0:01:47.8]} 18... Rd8 {[%clk 0:01:42.2]} 19. O-O-O {[%clk 0:01:45.2]}
19... Bd7 {[%clk 0:01:32.2]} 20. Kb1 {[%clk 0:01:36.8]} 20... Bc6 {[%clk
0:01:26.4]} 21. Rhe1 {[%clk 0:01:36.3]} 21... Rac8 {[%clk 0:01:10.9]} 22. a3
{[%clk 0:01:35.8]} 22... Bb5 {[%clk 0:00:29.1]} 23. Nxb5 {[%clk 0:01:21.9]}
23... Bxe1 {[%clk 0:00:27.3]} 24. Nd6 {[%clk 0:01:22.4]} 24... Rc6 {[%clk
0:00:24.1]} 25. Qb3 {[%clk 0:01:21.7]} 25... Rcxd6 {[%clk 0:00:16.9]} 26. exd6
{[%clk 0:01:20.7]} 26... Rxd6 {[%clk 0:00:17.3]} 27. Be5 {[%clk 0:01:15.5]}
27... Rxd1+ {[%clk 0:00:15.9]} 28. Qxd1 {[%clk 0:01:15.3]} 28... Qd2 {[%clk
0:00:16.5]} 29. Qa4 {[%clk 0:01:11.4]} 29... Qd3+ {[%clk 0:00:14.5]} 30. Ka1
{[%clk 0:01:10.2]} 30... b5 {[%clk 0:00:13.4]} 31. Qxa7 {[%clk 0:01:00.5]} 31...
Qd1+ {[%clk 0:00:12.5]} 32. Ka2 {[%clk 0:01:00.7]} 32... Qd5+ {[%clk 0:00:13.1]}
33. b3 {[%clk 0:00:54.8]} 33... b4 {[%clk 0:00:06.1]} 34. Qxg7# {[%clk 0:00:54]}
1-0

[Event "Early-Titled-Tuesday-Blitz-October-10-2023"]
[Site "Chess.com"]
[Date "2023.10.10"]
[Round "8"]
[White "IngOscarArdila"]
[Black "Happy1712Drummer"]
[Result "1-0"]
[WhiteElo "2324"]
[BlackElo "2356"]
[TimeControl "180+1"]
[EndTime "9:26:23 PDT"]
[Termination "IngOscarArdila won by resignation"]

1. d4 {[%clk 0:02:55]} 1... d5 {[%clk 0:02:59.9]} 2. c4 {[%clk 0:02:54.9]} 2...
e6 {[%clk 0:02:59.8]} 3. Nc3 {[%clk 0:02:54.6]} 3... c5 {[%clk 0:02:59.9]} 4.
cxd5 {[%clk 0:02:53.1]} 4... exd5 {[%clk 0:03:00.2]} 5. Nf3 {[%clk 0:02:52.8]}
5... Nc6 {[%clk 0:02:59.6]} 6. Bg5 {[%clk 0:02:49.7]} 6... Be7 {[%clk
0:02:49.1]} 7. Bxe7 {[%clk 0:02:48.3]} 7... Ngxe7 {[%clk 0:02:41.9]} 8. e3
{[%clk 0:02:47.1]} 8... c4 {[%clk 0:02:34.4]} 9. Be2 {[%clk 0:02:44.8]} 9... O-O
{[%clk 0:02:32.9]} 10. O-O {[%clk 0:02:44.6]} 10... Bf5 {[%clk 0:02:27]} 11. b3
{[%clk 0:02:43.7]} 11... cxb3 {[%clk 0:02:23.3]} 12. Qxb3 {[%clk 0:02:38.3]}
12... b6 {[%clk 0:02:16.4]} 13. Bb5 {[%clk 0:02:34.4]} 13... Rc8 {[%clk
0:02:12.5]} 14. Rac1 {[%clk 0:02:32.5]} 14... Na5 {[%clk 0:02:07.5]} 15. Qa3
{[%clk 0:02:27]} 15... h6 {[%clk 0:02:05.6]} 16. Ne5 {[%clk 0:02:24.8]} 16... f6
{[%clk 0:01:51.8]} 17. Nf3 {[%clk 0:02:05.5]} 17... Bg6 {[%clk 0:01:33.3]} 18.
Ba6 {[%clk 0:02:04]} 18... Rc7 {[%clk 0:01:19.7]} 19. Nb5 {[%clk 0:02:03.2]}
19... Rxc1 {[%clk 0:01:18.5]} 20. Rxc1 {[%clk 0:02:02.2]} 20... Nc4 {[%clk
0:01:17.7]} 21. Qb4 {[%clk 0:01:50]} 21... Nc6 {[%clk 0:01:13.5]} 22. Qc3 {[%clk
0:01:39.1]} 22... Be4 {[%clk 0:01:09.8]} 23. Nd2 {[%clk 0:01:35.5]} 23... Nxd2
{[%clk 0:01:02.4]} 24. Qxd2 {[%clk 0:01:35.4]} 24... Na5 {[%clk 0:01:02.6]} 25.
Rc7 {[%clk 0:01:20.2]} 25... Rf7 {[%clk 0:00:54.2]} 26. Rc8 {[%clk 0:01:16.8]}
26... Qxc8 {[%clk 0:00:46.4]} 27. Bxc8 {[%clk 0:01:16.6]} 27... Kh7 {[%clk
0:00:40.4]} 28. f3 {[%clk 0:01:12.9]} 28... Bg6 {[%clk 0:00:40.5]} 29. Be6
{[%clk 0:01:11.5]} 29... Re7 {[%clk 0:00:40.7]} 30. Bxd5 {[%clk 0:01:10.9]}
30... a6 {[%clk 0:00:38.7]} 31. Na3 {[%clk 0:01:00.2]} 31... Rc7 {[%clk
0:00:38.1]} 32. Be4 {[%clk 0:00:57.3]} 32... Bxe4 {[%clk 0:00:35.7]} 33. fxe4
{[%clk 0:00:57.9]} 33... h5 {[%clk 0:00:26.8]} 34. d5 {[%clk 0:00:57.8]} 34...
Rd7 {[%clk 0:00:25]} 35. Qb4 {[%clk 0:00:56.1]} 35... Nb7 {[%clk 0:00:21.6]} 36.
Qxb6 {[%clk 0:00:55.7]} 36... Nd6 {[%clk 0:00:22]} 37. Qc6 {[%clk 0:00:54.2]}
37... Rd8 {[%clk 0:00:22.6]} 38. Qc7 {[%clk 0:00:48.1]} 1-0